Workbook

Sheet Introduction
F1: www.Tricks12345.com
B3: Final Accounts
B21: Pavan Kumar Gundlapalli

Sheet Journal Ledger
A1: Date | B1: Accounts | C1: Type | D1: Debit | E1: Credit | F1: Comment | T1: Personal | U1: Real | V1: Nominal | Z1: Trading Account | AE1: Profit and Loss Structure | AI1: Balance Sheet Structure
A2: 2018-01-01 | B2: Purchases a\c | C2: Nominal | D2: 10000 | F2: Cash Purchases | T2: Capital | U2: Cash | V2: Purchases | Z2: Purchases | AA2: Sales | AE2: Salaries | AF2: Profit b/d | AI2: Capital | AJ2: Cash In Hand
A3: 2018-01-01 | B3: To Cash a\c | C3: Real | E3: 10000 | F3: Cash Purchases | U3: Cash In Hand | V3: Sales | Z3: Purchase Returns | AA3: Sales Returns | AE3: Rent | AF3: Commission Received | AI3: Add Net Profit | AJ3: Buildings
A4: 2018-02-28 | B4: Purchases a\c | C4: Nominal | D4: 5000 | F4: Feb month cash Purchases | U4: Buildings | V4: Wages | Z4: Wages | AE4: Stationary | AJ4: Machinery
A5: 2018-02-28 | B5: To Cash a\c | C5: Real | E5: 5000 | F5: Feb month cash Purchases | U5: Machinery | V5: Salaries | Z5: Gross Profit | AE5: Telephone Expenses
A6: 2018-03-31 | B6: Purchases a\c | C6: Nominal | D6: 800 | F6: March month Purchases | U6: Balance b/d | V6: Stationary | AE6: Travelling Expenses
A7: 2018-03-31 | B7: To Cash a\c | C7: Real | E7: 800 | F7: March month Purchases | V7: Rent | AE7: Printing
A8: 2018-04-30 | B8: Purchases a\c | C8: Nominal | D8: 800 | F8: April Month Purchases | V8: Telephone Expenses | AE8: Net Profit
A9: 2018-04-30 | B9: To Cash a\c | C9: Real | E9: 800 | F9: April Month Purchases | V9: Travelling Expenses
A10: 2018-05-31 | B10: Purchases a\c | C10: Nominal | D10: 500 | F10: May Month Purchases | V10: Printing
A11: 2018-05-31 | B11: To Cash a\c | C11: Real | E11: 500 | F11: May Month Purchases | V11: Commission Received
A12: 2018-01-31 | B12: Cash a\c | C12: Real | D12: 5000 | F12: Jan sales | V12: Purchase Returns
A13: 2018-01-31 | B13: To Sales a\c | C13: Nominal | E13: 5000 | F13: Jan sales | V13: Sales Returns
A14: 2018-02-28 | B14: Cash a\c | C14: Real | D14: 15000 | F14: Feb Sales | V14: Balance b/d
A15: 2018-02-28 | B15: To Sales a\c | C15: Nominal | E15: 15000 | F15: Feb Sales
A16: 2018-03-31 | B16: Cash a\c | C16: Real | D16: 24000 | F16: March Sales
A17: 2018-03-31 | B17: To Sales a\c | C17: Nominal | E17: 24000 | F17: March Sales
A18: 2018-01-01 | B18: Wages a\c | C18: Nominal | D18: 500 | F18: Wages Paid for January
A19: 2018-01-01 | B19: To Cash a\c | C19: Real | E19: 500 | F19: Wages Paid for January
A20: 2018-02-28 | B20: Wages a\c | C20: Nominal | D20: 300 | F20: Wages Paid for February
A21: 2018-02-28 | B21: To Cash a\c | C21: Real | E21: 300 | F21: Wages Paid for February
A22: 2018-04-30 | B22: Cash a\c | C22: Real | D22: 12000 | F22: April sales
A23: 2018-04-30 | B23: To Sales a\c | C23: Nominal | E23: 12000 | F23: April sales
A24: 2018-01-31 | B24: Salaries a\c | C24: Nominal | D24: 2000 | F24: Jan salaries paid
A25: 2018-01-31 | B25: To Cash a\c | C25: Real | E25: 2000 | F25: Jan salaries paid
A26: 2018-02-28 | B26: Salaries a\c | C26: Nominal | D26: 2000 | F26: Feb Salaries Paid
A27: 2018-02-28 | B27: To Cash a\c | C27: Real | E27: 2000 | F27: Feb Salaries Paid
A28: 2018-03-31 | B28: Salaries a\c | C28: Nominal | D28: 2000 | F28: March Salaries Paid
A29: 2018-03-31 | B29: To Cash a\c | C29: Real | E29: 2000 | F29: March Salaries Paid
A30: 2018-04-30 | B30: Salaries a\c | C30: Nominal | D30: 2000 | F30: April Salaries Paid
A31: 2018-04-30 | B31: To Cash a\c | C31: Real | E31: 2000 | F31: April Salaries Paid
A32: 2018-05-31 | B32: Salaries a\c | C32: Nominal | D32: 2000 | F32: May Salareis Paid
A33: 2018-05-31 | B33: To Cash a\c | C33: Real | E33: 2000 | F33: May Salareis Paid
A34: 2018-06-30 | B34: Salaries a\c | C34: Nominal | D34: 2000 | F34: June Salaraies Paid
A35: 2018-06-30 | B35: To Cash a\c | C35: Real | E35: 2000 | F35: June Salaraies Paid
A36: 2018-01-31 | B36: Rent a\c | C36: Nominal | D36: 800 | F36: Jan Rent paid
A37: 2018-01-31 | B37: To Cash a\c | C37: Real | E37: 800 | F37: Jan Rent paid
A38: 2018-02-28 | B38: Rent a\c | C38: Nominal | D38: 800 | F38: Feb Rent paid
A39: 2018-02-28 | B39: To Cash a\c | C39: Real | E39: 800 | F39: Feb Rent paid
A40: 2018-03-31 | B40: Rent a\c | C40: Nominal | D40: 800 | F40: March Rent paid
A41: 2018-03-31 | B41: To Cash a\c | C41: Real | E41: 800 | F41: March Rent paid
A42: 2018-04-30 | B42: Rent a\c | C42: Nominal | D42: 800 | F42: April Rent paid
A43: 2018-04-30 | B43: To Cash a\c | C43: Real | E43: 800 | F43: April Rent paid
A44: 2018-05-31 | B44: Rent a\c | C44: Nominal | D44: 800 | F44: May Rent paid
A45: 2018-05-31 | B45: To Cash a\c | C45: Real | E45: 800 | F45: May Rent paid
A46: 2018-06-30 | B46: Rent a\c | C46: Nominal | D46: 800 | F46: June Rent paid
A47: 2018-06-30 | B47: To Cash a\c | C47: Real | E47: 800 | F47: June Rent paid
A48: 2018-01-31 | B48: Telephone Expenses a\c | C48: Nominal | D48: 500 | F48: Jan Telephone Charges
A49: 2018-01-31 | B49: To Cash a\c | C49: Real | E49: 500 | F49: Jan Telephone Charges
A50: 2018-02-28 | B50: Telephone Expenses a\c | C50: Nominal | D50: 500 | F50: Feb Telephone Charges
A51: 2018-02-28 | B51: To Cash a\c | C51: Real | E51: 500 | F51: Feb Telephone Charges
A52: 2018-03-31 | B52: Telephone Expenses a\c | C52: Nominal | D52: 500 | F52: Mar Telephone Charges
A53: 2018-03-31 | B53: To Cash a\c | C53: Real | E53: 500 | F53: Mar Telephone Charges
A54: 2018-04-30 | B54: Telephone Expenses a\c | C54: Nominal | D54: 500 | F54: April Telephone Charges
A55: 2018-04-30 | B55: To Cash a\c | C55: Real | E55: 500 | F55: April Telephone Charges
A56: 2018-05-31 | B56: Telephone Expenses a\c | C56: Nominal | D56: 500 | F56: May Telephone Charges
A57: 2018-05-31 | B57: To Cash a\c | C57: Real | E57: 500 | F57: May Telephone Charges
A58: 2018-06-30 | B58: Telephone Expenses a\c | C58: Nominal | D58: 500 | F58: June Telephone Charges
A59: 2018-06-30 | B59: To Cash a\c | C59: Real | E59: 500 | F59: June Telephone Charges
A60: 2018-01-31 | B60: Travelling Expenses a\c | C60: Nominal | D60: 350 | F60: Jan Travelling Expenses
A61: 2018-01-31 | B61: To Cash a\c | C61: Real | E61: 350 | F61: Jan Travelling Expenses
A62: 2018-02-28 | B62: Travelling Expenses a\c | C62: Nominal | D62: 350 | F62: Feb Travelling Expenses
A63: 2018-02-28 | B63: To Cash a\c | C63: Real | E63: 350 | F63: Feb Travelling Expenses
A64: 2018-03-31 | B64: Travelling Expenses a\c | C64: Nominal | D64: 350 | F64: Mar Travelling Expenses
A65: 2018-03-31 | B65: To Cash a\c | C65: Real | E65: 350 | F65: Mar Travelling Expenses
A66: 2018-04-30 | B66: Travelling Expenses a\c | C66: Nominal | D66: 350 | F66: April Travelling Expenses
A67: 2018-04-30 | B67: To Cash a\c | C67: Real | E67: 350 | F67: April Travelling Expenses
A68: 2018-05-31 | B68: Travelling Expenses a\c | C68: Nominal | D68: 350 | F68: May Travelling Expenses
A69: 2018-05-31 | B69: To Cash a\c | C69: Real | E69: 350 | F69: May Travelling Expenses
A70: 2018-06-30 | B70: Travelling Expenses a\c | C70: Nominal | D70: 350 | F70: June Travelling Expenses
A71: 2018-06-30 | B71: To Cash a\c | C71: Real | E71: 350 | F71: June Travelling Expenses
A72: 2018-01-31 | B72: Stationary a\c | C72: Nominal | D72: 250 | F72: Jan Travelling Expenses
A73: 2018-01-31 | B73: To Cash a\c | C73: Real | E73: 250 | F73: Jan Travelling Expenses
A74: 2018-02-28 | B74: Stationary a\c | C74: Nominal | D74: 250 | F74: Feb Travelling Expenses
A75: 2018-02-28 | B75: To Cash a\c | C75: Real | E75: 250 | F75: Feb Travelling Expenses
A76: 2018-03-31 | B76: Stationary a\c | C76: Nominal | D76: 250 | F76: Mar Travelling Expenses
A77: 2018-03-31 | B77: To Cash a\c | C77: Real | E77: 250 | F77: Mar Travelling Expenses
A78: 2018-04-30 | B78: Stationary a\c | C78: Nominal | D78: 250 | F78: April Travelling Expenses
A79: 2018-04-30 | B79: To Cash a\c | C79: Real | E79: 250 | F79: April Travelling Expenses
A80: 2018-05-31 | B80: Stationary a\c | C80: Nominal | D80: 250 | F80: May Travelling Expenses
A81: 2018-05-31 | B81: To Cash a\c | C81: Real | E81: 250 | F81: May Travelling Expenses
A82: 2018-06-30 | B82: Stationary a\c | C82: Nominal | D82: 250 | F82: June Travelling Expenses
A83: 2018-06-30 | B83: To Cash a\c | C83: Real | E83: 250 | F83: June Travelling Expenses
A84: 2018-01-31 | B84: Printing a\c | C84: Nominal | D84: 150 | F84: Jan Printing Expenses
A85: 2018-01-31 | B85: To Cash a\c | C85: Real | E85: 150 | F85: Jan Printing Expenses
A86: 2018-02-28 | B86: Printing a\c | C86: Nominal | D86: 150 | F86: Feb Printing Expenses
A87: 2018-02-28 | B87: To Cash a\c | C87: Real | E87: 150 | F87: Feb Printing Expenses
A88: 2018-03-31 | B88: Printing a\c | C88: Nominal | D88: 150 | F88: Mar Printing Expenses
A89: 2018-03-31 | B89: To Cash a\c | C89: Real | E89: 150 | F89: Mar Printing Expenses
A90: 2018-04-30 | B90: Printing a\c | C90: Nominal | D90: 150 | F90: April Printing Expenses
A91: 2018-04-30 | B91: To Cash a\c | C91: Real | E91: 150 | F91: April Printing Expenses
A92: 2018-05-31 | B92: Printing a\c | C92: Nominal | D92: 150 | F92: May Printing Expenses
A93: 2018-05-31 | B93: To Cash a\c | C93: Real | E93: 150 | F93: May Printing Expenses
A94: 2018-06-30 | B94: Printing a\c | C94: Nominal | D94: 150 | F94: June Printing Expenses
A95: 2018-06-30 | B95: To Cash a\c | C95: Real | E95: 150 | F95: June Printing Expenses
A96: 2018-01-01 | B96: Balance b/d a\c | C96: Nominal | D96: 142400 | F96: Capital Brough forward from P.Y
A97: 2018-01-01 | B97: To Capital a\c | C97: Personal | E97: 142400 | F97: Capital Brough forward from P.Y
A98: 2018-01-01 | B98: Cash In Hand a\c | C98: Real | D98: 11200 | F98: Opening Balance of Cash
A99: 2018-01-01 | B99: To Balance b/d a\c | C99: Real | E99: 11200 | F99: Opening Balance of Cash
A100: 2018-01-01 | B100: Buildings a\c | C100: Real | D100: 36100 | F100: Building Opening Balance
A101: 2018-01-01 | B101: To Balance b/d a\c | C101: Real | E101: 36100 | F101: Building Opening Balance
A102: 2018-01-01 | B102: Machinery a\c | C102: Real | D102: 110000 | F102: Machinery Opening Balance
A103: 2018-01-01 | B103: To Balance b/d a\c | C103: Real | E103: 110000 | F103: Machinery Opening Balance
A104: 2018-01-31 | B104: Cash a\c | C104: Real | D104: 150 | F104: Commission Received
A105: 2018-01-31 | B105: To Commission Received a\c | C105: Nominal | E105: 150 | F105: Commission Received
A106: 2018-02-28 | B106: Cash a\c | C106: Real | D106: 450 | F106: Commission Received on Feb
A107: 2018-02-28 | B107: To Commission Received a\c | C107: Nominal | E107: 450 | F107: Commission Received on Feb
A108: 2018-03-31 | B108: Cash a\c | C108: Real | D108: 2000 | F108: Purchase Returns
A109: 2018-03-31 | B109: To Purchase Returns a\c | C109: Nominal | E109: 2000 | F109: Purchase Returns
A110: 2018-04-30 | B110: Sales Returns a\c | C110: Nominal | D110: 1500 | F110: Sales Returns
A111: 2018-04-30 | B111: To Cash a\c | C111: Real | E111: 1500 | F111: Sales Returns
B113: Total Ledger Balance | D113: =SUM(D2:D111) -> 402000 | E113: =SUM(E2:E111) -> 402000

Sheet Transactions
A1: Date | B1: Transactions | C1: Debit | D1: Credit | E1: Amount | F1: Comment
A2: 2018-01-01 | B2: Purchases a\c | C2: Nominal | D2: 10000 | F2: Cash Purchases
A3: 2018-01-01 | B3: To Cash a\c | C3: Real | E3: 10000 | F3: Cash Purchases
A4: 2018-02-28 | B4: Purchases a\c | C4: Nominal | D4: 5000 | F4: Feb month cash Purchases
A5: 2018-02-28 | B5: To Cash a\c | C5: Real | E5: 5000 | F5: Feb month cash Purchases
A6: 2018-03-31 | B6: Purchases a\c | C6: Nominal | D6: 800 | F6: March month Purchases
A7: 2018-03-31 | B7: To Cash a\c | C7: Real | E7: 800 | F7: March month Purchases
A8: 2018-04-30 | B8: Purchases a\c | C8: Nominal | D8: 800 | F8: April Month Purchases
A9: 2018-04-30 | B9: To Cash a\c | C9: Real | E9: 800 | F9: April Month Purchases
A10: 2018-05-31 | B10: Purchases a\c | C10: Nominal | D10: 500 | F10: May Month Purchases
A11: 2018-05-31 | B11: To Cash a\c | C11: Real | E11: 500 | F11: May Month Purchases
A12: 2018-01-31 | B12: Cash a\c | C12: Real | D12: 5000 | F12: Jan sales
A13: 2018-01-31 | B13: To Sales a\c | C13: Nominal | E13: 5000 | F13: Jan sales
A14: 2018-02-28 | B14: Cash a\c | C14: Real | D14: 15000 | F14: Feb Sales
A15: 2018-02-28 | B15: To Sales a\c | C15: Nominal | E15: 15000 | F15: Feb Sales
A16: 2018-03-31 | B16: Cash a\c | C16: Real | D16: 24000 | F16: March Sales
A17: 2018-03-31 | B17: To Sales a\c | C17: Nominal | E17: 24000 | F17: March Sales
A18: 2018-01-01 | B18: Wages a\c | C18: Nominal | D18: 500 | F18: Wages Paid for January
A19: 2018-01-01 | B19: To Cash a\c | C19: Real | E19: 500 | F19: Wages Paid for January
A20: 2018-02-28 | B20: Wages a\c | C20: Nominal | D20: 300 | F20: Wages Paid for February
A21: 2018-02-28 | B21: To Cash a\c | C21: Real | E21: 300 | F21: Wages Paid for February
A22: 2018-04-30 | B22: Cash a\c | C22: Real | D22: 12000 | F22: April sales
A23: 2018-04-30 | B23: To Sales a\c | C23: Nominal | E23: 12000 | F23: April sales
A24: 2018-01-31 | B24: Salaries a\c | C24: Nominal | D24: 2000 | F24: Jan salaries paid
A25: 2018-01-31 | B25: To Cash a\c | C25: Real | E25: 2000 | F25: Jan salaries paid
A26: 2018-02-28 | B26: Salaries a\c | C26: Nominal | D26: 2000 | F26: Feb Salaries Paid
A27: 2018-02-28 | B27: To Cash a\c | C27: Real | E27: 2000 | F27: Feb Salaries Paid
A28: 2018-03-31 | B28: Salaries a\c | C28: Nominal | D28: 2000 | F28: March Salaries Paid
A29: 2018-03-31 | B29: To Cash a\c | C29: Real | E29: 2000 | F29: March Salaries Paid
A30: 2018-04-30 | B30: Salaries a\c | C30: Nominal | D30: 2000 | F30: April Salaries Paid
A31: 2018-04-30 | B31: To Cash a\c | C31: Real | E31: 2000 | F31: April Salaries Paid
A32: 2018-05-31 | B32: Salaries a\c | C32: Nominal | D32: 2000 | F32: May Salareis Paid
A33: 2018-05-31 | B33: To Cash a\c | C33: Real | E33: 2000 | F33: May Salareis Paid
A34: 2018-06-30 | B34: Salaries a\c | C34: Nominal | D34: 2000 | F34: June Salaraies Paid
A35: 2018-06-30 | B35: To Cash a\c | C35: Real | E35: 2000 | F35: June Salaraies Paid
A36: 2018-01-31 | B36: Rent a\c | C36: Nominal | D36: 800 | F36: Jan Rent paid
A37: 2018-01-31 | B37: To Cash a\c | C37: Real | E37: 800 | F37: Jan Rent paid
A38: 2018-02-28 | B38: Rent a\c | C38: Nominal | D38: 800 | F38: Feb Rent paid
A39: 2018-02-28 | B39: To Cash a\c | C39: Real | E39: 800 | F39: Feb Rent paid
A40: 2018-03-31 | B40: Rent a\c | C40: Nominal | D40: 800 | F40: March Rent paid
A41: 2018-03-31 | B41: To Cash a\c | C41: Real | E41: 800 | F41: March Rent paid
A42: 2018-04-30 | B42: Rent a\c | C42: Nominal | D42: 800 | F42: April Rent paid
A43: 2018-04-30 | B43: To Cash a\c | C43: Real | E43: 800 | F43: April Rent paid
A44: 2018-05-31 | B44: Rent a\c | C44: Nominal | D44: 800 | F44: May Rent paid
A45: 2018-05-31 | B45: To Cash a\c | C45: Real | E45: 800 | F45: May Rent paid
A46: 2018-06-30 | B46: Rent a\c | C46: Nominal | D46: 800 | F46: June Rent paid
A47: 2018-06-30 | B47: To Cash a\c | C47: Real | E47: 800 | F47: June Rent paid
A48: 2018-01-31 | B48: Telephone Expenses a\c | C48: Nominal | D48: 500 | F48: Jan Telephone Charges
A49: 2018-01-31 | B49: To Cash a\c | C49: Real | E49: 500 | F49: Jan Telephone Charges
A50: 2018-02-28 | B50: Telephone Expenses a\c | C50: Nominal | D50: 500 | F50: Feb Telephone Charges
A51: 2018-02-28 | B51: To Cash a\c | C51: Real | E51: 500 | F51: Feb Telephone Charges
A52: 2018-03-31 | B52: Telephone Expenses a\c | C52: Nominal | D52: 500 | F52: Mar Telephone Charges
A53: 2018-03-31 | B53: To Cash a\c | C53: Real | E53: 500 | F53: Mar Telephone Charges
A54: 2018-04-30 | B54: Telephone Expenses a\c | C54: Nominal | D54: 500 | F54: April Telephone Charges
A55: 2018-04-30 | B55: To Cash a\c | C55: Real | E55: 500 | F55: April Telephone Charges
A56: 2018-05-31 | B56: Telephone Expenses a\c | C56: Nominal | D56: 500 | F56: May Telephone Charges
A57: 2018-05-31 | B57: To Cash a\c | C57: Real | E57: 500 | F57: May Telephone Charges
A58: 2018-06-30 | B58: Telephone Expenses a\c | C58: Nominal | D58: 500 | F58: June Telephone Charges
A59: 2018-06-30 | B59: To Cash a\c | C59: Real | E59: 500 | F59: June Telephone Charges
A60: 2018-01-31 | B60: Travelling Expenses a\c | C60: Nominal | D60: 350 | F60: Jan Travelling Expenses
A61: 2018-01-31 | B61: To Cash a\c | C61: Real | E61: 350 | F61: Jan Travelling Expenses
A62: 2018-02-28 | B62: Travelling Expenses a\c | C62: Nominal | D62: 350 | F62: Feb Travelling Expenses
A63: 2018-02-28 | B63: To Cash a\c | C63: Real | E63: 350 | F63: Feb Travelling Expenses
A64: 2018-03-31 | B64: Travelling Expenses a\c | C64: Nominal | D64: 350 | F64: Mar Travelling Expenses
A65: 2018-03-31 | B65: To Cash a\c | C65: Real | E65: 350 | F65: Mar Travelling Expenses
A66: 2018-04-30 | B66: Travelling Expenses a\c | C66: Nominal | D66: 350 | F66: April Travelling Expenses
A67: 2018-04-30 | B67: To Cash a\c | C67: Real | E67: 350 | F67: April Travelling Expenses
A68: 2018-05-31 | B68: Travelling Expenses a\c | C68: Nominal | D68: 350 | F68: May Travelling Expenses
A69: 2018-05-31 | B69: To Cash a\c | C69: Real | E69: 350 | F69: May Travelling Expenses
A70: 2018-06-30 | B70: Travelling Expenses a\c | C70: Nominal | D70: 350 | F70: June Travelling Expenses
A71: 2018-06-30 | B71: To Cash a\c | C71: Real | E71: 350 | F71: June Travelling Expenses
A72: 2018-01-31 | B72: Stationary a\c | C72: Nominal | D72: 250 | F72: Jan Travelling Expenses
A73: 2018-01-31 | B73: To Cash a\c | C73: Real | E73: 250 | F73: Jan Travelling Expenses
A74: 2018-02-28 | B74: Stationary a\c | C74: Nominal | D74: 250 | F74: Feb Travelling Expenses
A75: 2018-02-28 | B75: To Cash a\c | C75: Real | E75: 250 | F75: Feb Travelling Expenses
A76: 2018-03-31 | B76: Stationary a\c | C76: Nominal | D76: 250 | F76: Mar Travelling Expenses
A77: 2018-03-31 | B77: To Cash a\c | C77: Real | E77: 250 | F77: Mar Travelling Expenses
A78: 2018-04-30 | B78: Stationary a\c | C78: Nominal | D78: 250 | F78: April Travelling Expenses
A79: 2018-04-30 | B79: To Cash a\c | C79: Real | E79: 250 | F79: April Travelling Expenses
A80: 2018-05-31 | B80: Stationary a\c | C80: Nominal | D80: 250 | F80: May Travelling Expenses
A81: 2018-05-31 | B81: To Cash a\c | C81: Real | E81: 250 | F81: May Travelling Expenses
A82: 2018-06-30 | B82: Stationary a\c | C82: Nominal | D82: 250 | F82: June Travelling Expenses
A83: 2018-06-30 | B83: To Cash a\c | C83: Real | E83: 250 | F83: June Travelling Expenses
A84: 2018-01-31 | B84: Printing a\c | C84: Nominal | D84: 150 | F84: Jan Printing Expenses
A85: 2018-01-31 | B85: To Cash a\c | C85: Real | E85: 150 | F85: Jan Printing Expenses
A86: 2018-02-28 | B86: Printing a\c | C86: Nominal | D86: 150 | F86: Feb Printing Expenses
A87: 2018-02-28 | B87: To Cash a\c | C87: Real | E87: 150 | F87: Feb Printing Expenses
A88: 2018-03-31 | B88: Printing a\c | C88: Nominal | D88: 150 | F88: Mar Printing Expenses
A89: 2018-03-31 | B89: To Cash a\c | C89: Real | E89: 150 | F89: Mar Printing Expenses
A90: 2018-04-30 | B90: Printing a\c | C90: Nominal | D90: 150 | F90: April Printing Expenses
A91: 2018-04-30 | B91: To Cash a\c | C91: Real | E91: 150 | F91: April Printing Expenses
A92: 2018-05-31 | B92: Printing a\c | C92: Nominal | D92: 150 | F92: May Printing Expenses
A93: 2018-05-31 | B93: To Cash a\c | C93: Real | E93: 150 | F93: May Printing Expenses
A94: 2018-06-30 | B94: Printing a\c | C94: Nominal | D94: 150 | F94: June Printing Expenses
A95: 2018-06-30 | B95: To Cash a\c | C95: Real | E95: 150 | F95: June Printing Expenses
A96: 2018-01-01 | B96: Balance b/d a\c | C96: Nominal | D96: 142400 | F96: Capital Brough forward from P.Y
A97: 2018-01-01 | B97: To Capital a\c | C97: Personal | E97: 142400 | F97: Capital Brough forward from P.Y
A98: 2018-01-01 | B98: Cash In Hand a\c | C98: Real | D98: 10000 | F98: Opening Balance of Cash
A99: 2018-01-01 | B99: To Balance b/d a\c | C99: Real | E99: 10000 | F99: Opening Balance of Cash
A100: 2018-01-01 | B100: Buildings a\c | C100: Real | D100: 36100 | F100: Building Opening Balance
A101: 2018-01-01 | B101: To Balance b/d a\c | C101: Real | E101: 36100 | F101: Building Opening Balance
A102: 2018-01-01 | B102: Machinery a\c | C102: Real | D102: 110000 | F102: Machinery Opening Balance
A103: 2018-01-01 | B103: To Balance b/d a\c | C103: Real | E103: 110000 | F103: Machinery Opening Balance
A104: 2018-01-31 | B104: Cash a\c | C104: Real | D104: 150 | F104: Commission Received
A105: 2018-01-31 | B105: To Commission Received a\c | C105: Nominal | E105: 150 | F105: Commission Received
A106: 2018-02-28 | B106: Cash a\c | C106: Real | D106: 450 | F106: Commission Received on Feb
A107: 2018-02-28 | B107: To Commission Received a\c | C107: Nominal | E107: 450 | F107: Commission Received on Feb
A108: 2018-03-31 | B108: Cash a\c | C108: Real | D108: 2000 | F108: Purchase Returns
A109: 2018-03-31 | B109: To Purchase Returns a\c | C109: Nominal | E109: 2000 | F109: Purchase Returns
A110: 2018-04-30 | B110: Sales Returns a\c | C110: Nominal | D110: 1500 | F110: Sales Returns
A111: 2018-04-30 | B111: To Cash a\c | C111: Real | E111: 1500 | F111: Sales Returns

Sheet Trading and ProfitLoss Account
B3: Trading and ProfitLoss Account
B4: Particulars | C4: Amount | E4: Particulars | F4: Amount
B5: Purchases | C5: 17100 | E5: Sales | F5: 56000
B6: Purchase Returns | C6: -2000 | E6: Sales Returns | F6: -1500
B7: Wages | C7: 800
B8: Gross Profit | C8: 38600
C10: 54500 | F10: =SUM(F5:F8) -> 54500
B13: Salaries | C13: 12000 | E13: Profit b/d | F13: 38600
B14: Rent | C14: 4800 | E14: Commission Received | F14: 600
B15: Stationary | C15: 1500
B16: Telephone Expenses | C16: 3000
B17: Travelling Expenses | C17: 2100
B18: Printing | C18: 900
B19: Net Profit | C19: 14900
C21: 39200 | F21: =SUM(F13:F19) -> 39200

Sheet Balance Sheet
B3: Balance Sheet
B4: Particulars | C4: Amount | E4: Particulars | F4: Amount
B5: Capital | C5: 142400 | E5: Cash In Hand | F5: 11200
B6: Add Net Profit | C6: 14900 | E6: Buildings | F6: 36100
E7: Machinery | F7: 110000
C9: =SUM(C5:C7) -> 157300 | F9: =SUM(F5:F7) -> 157300

Sheet Capital
B3: Capital Account
B4: Date | C4: Particulars | D4: Amount | F4: Date | G4: Particulars | H4: Amount
F5: 2018-01-01 | G5: By Balance b/d a\c | H5: 142400
C6: Capital c\f | D6: 142400
D7: 142400 | H7: =SUM(H5:H5) -> 142400

Sheet Cash
B3: Cash Account
B4: Date | C4: Particulars | D4: Amount | F4: Date | G4: Particulars | H4: Amount
B5: 2018-01-31 | C5: To Sales a\c | D5: 5000 | F5: 2018-01-01 | G5: By Purchases a\c | H5: 10000
B6: 2018-02-28 | C6: To Sales a\c | D6: 15000 | F6: 2018-02-28 | G6: By Purchases a\c | H6: 5000
B7: 2018-03-31 | C7: To Sales a\c | D7: 24000 | F7: 2018-03-31 | G7: By Purchases a\c | H7: 800
B8: 2018-04-30 | C8: To Sales a\c | D8: 12000 | F8: 2018-04-30 | G8: By Purchases a\c | H8: 800
B9: 2018-01-31 | C9: To Commission Received a\c | D9: 150 | F9: 2018-05-31 | G9: By Purchases a\c | H9: 500
B10: 2018-02-28 | C10: To Commission Received a\c | D10: 450 | F10: 2018-01-01 | G10: By Wages a\c | H10: 500
B11: 2018-03-31 | C11: To Purchase Returns a\c | D11: 2000 | F11: 2018-02-28 | G11: By Wages a\c | H11: 300
F12: 2018-01-31 | G12: By Salaries a\c | H12: 2000
F13: 2018-02-28 | G13: By Salaries a\c | H13: 2000
F14: 2018-03-31 | G14: By Salaries a\c | H14: 2000
F15: 2018-04-30 | G15: By Salaries a\c | H15: 2000
F16: 2018-05-31 | G16: By Salaries a\c | H16: 2000
F17: 2018-06-30 | G17: By Salaries a\c | H17: 2000
F18: 2018-01-31 | G18: By Rent a\c | H18: 800
F19: 2018-02-28 | G19: By Rent a\c | H19: 800
F20: 2018-03-31 | G20: By Rent a\c | H20: 800
F21: 2018-04-30 | G21: By Rent a\c | H21: 800
F22: 2018-05-31 | G22: By Rent a\c | H22: 800
F23: 2018-06-30 | G23: By Rent a\c | H23: 800
F24: 2018-01-31 | G24: By Telephone Expenses a\c | H24: 500
F25: 2018-02-28 | G25: By Telephone Expenses a\c | H25: 500
F26: 2018-03-31 | G26: By Telephone Expenses a\c | H26: 500
F27: 2018-04-30 | G27: By Telephone Expenses a\c | H27: 500
F28: 2018-05-31 | G28: By Telephone Expenses a\c | H28: 500
F29: 2018-06-30 | G29: By Telephone Expenses a\c | H29: 500
F30: 2018-01-31 | G30: By Travelling Expenses a\c | H30: 350
F31: 2018-02-28 | G31: By Travelling Expenses a\c | H31: 350
F32: 2018-03-31 | G32: By Travelling Expenses a\c | H32: 350
F33: 2018-04-30 | G33: By Travelling Expenses a\c | H33: 350
F34: 2018-05-31 | G34: By Travelling Expenses a\c | H34: 350
F35: 2018-06-30 | G35: By Travelling Expenses a\c | H35: 350
F36: 2018-01-31 | G36: By Stationary a\c | H36: 250
F37: 2018-02-28 | G37: By Stationary a\c | H37: 250
F38: 2018-03-31 | G38: By Stationary a\c | H38: 250
F39: 2018-04-30 | G39: By Stationary a\c | H39: 250
F40: 2018-05-31 | G40: By Stationary a\c | H40: 250
F41: 2018-06-30 | G41: By Stationary a\c | H41: 250
F42: 2018-01-31 | G42: By Printing a\c | H42: 150
F43: 2018-02-28 | G43: By Printing a\c | H43: 150
F44: 2018-03-31 | G44: By Printing a\c | H44: 150
F45: 2018-04-30 | G45: By Printing a\c | H45: 150
F46: 2018-05-31 | G46: By Printing a\c | H46: 150
F47: 2018-06-30 | G47: By Printing a\c | H47: 150
F48: 2018-04-30 | G48: By Sales Returns a\c | H48: 1500

Sheet Cash In Hand
B3: Cash In Hand Account
B4: Date | C4: Particulars | D4: Amount | F4: Date | G4: Particulars | H4: Amount
B5: 2018-01-01 | C5: To Balance b/d a\c | D5: 11200
G6: Cash In Hand c\f | H6: 11200
D7: =SUM(D5:D5) -> 11200 | H7: 11200

Sheet Buildings
B3: Buildings Account
B4: Date | C4: Particulars | D4: Amount | F4: Date | G4: Particulars | H4: Amount
B5: 2018-01-01 | C5: To Balance b/d a\c | D5: 36100
G6: Buildings c\f | H6: 36100
D7: =SUM(D5:D5) -> 36100 | H7: 36100

Sheet Machinery
B3: Machinery Account
B4: Date | C4: Particulars | D4: Amount | F4: Date | G4: Particulars | H4: Amount
B5: 2018-01-01 | C5: To Balance b/d a\c | D5: 110000
G6: Machinery c\f | H6: 110000
D7: =SUM(D5:D5) -> 110000 | H7: 110000

Sheet Purchases
B3: Purchases Account
B4: Date | C4: Particulars | D4: Amount | F4: Date | G4: Particulars | H4: Amount
B5: 2018-01-01 | C5: To Cash a\c | D5: 10000
B6: 2018-02-28 | C6: To Cash a\c | D6: 5000
B7: 2018-03-31 | C7: To Cash a\c | D7: 800
B8: 2018-04-30 | C8: To Cash a\c | D8: 800
B9: 2018-05-31 | C9: To Cash a\c | D9: 500
G10: Purchases c\f | H10: 17100
D11: =SUM(D5:D9) -> 17100 | H11: 17100

Sheet Sales
B3: Sales Account
B4: Date | C4: Particulars | D4: Amount | F4: Date | G4: Particulars | H4: Amount
F5: 2018-01-31 | G5: By Cash a\c | H5: 5000
F6: 2018-02-28 | G6: By Cash a\c | H6: 15000
F7: 2018-03-31 | G7: By Cash a\c | H7: 24000
F8: 2018-04-30 | G8: By Cash a\c | H8: 12000
C9: Sales c\f | D9: 56000
D10: 56000 | H10: =SUM(H5:H8) -> 56000

Sheet Wages
B3: Wages Account
B4: Date | C4: Particulars | D4: Amount | F4: Date | G4: Particulars | H4: Amount
B5: 2018-01-01 | C5: To Cash a\c | D5: 500
B6: 2018-02-28 | C6: To Cash a\c | D6: 300
G7: Wages c\f | H7: 800
D8: =SUM(D5:D6) -> 800 | H8: 800

Sheet Salaries
B3: Salaries Account
B4: Date | C4: Particulars | D4: Amount | F4: Date | G4: Particulars | H4: Amount
B5: 2018-01-31 | C5: To Cash a\c | D5: 2000
B6: 2018-02-28 | C6: To Cash a\c | D6: 2000
B7: 2018-03-31 | C7: To Cash a\c | D7: 2000
B8: 2018-04-30 | C8: To Cash a\c | D8: 2000
B9: 2018-05-31 | C9: To Cash a\c | D9: 2000
B10: 2018-06-30 | C10: To Cash a\c | D10: 2000
G11: Salaries c\f | H11: 12000
D12: =SUM(D5:D10) -> 12000 | H12: 12000

Sheet Stationary
B3: Stationary Account
B4: Date | C4: Particulars | D4: Amount | F4: Date | G4: Particulars | H4: Amount
B5: 2018-01-31 | C5: To Cash a\c | D5: 250
B6: 2018-02-28 | C6: To Cash a\c | D6: 250
B7: 2018-03-31 | C7: To Cash a\c | D7: 250
B8: 2018-04-30 | C8: To Cash a\c | D8: 250
B9: 2018-05-31 | C9: To Cash a\c | D9: 250
B10: 2018-06-30 | C10: To Cash a\c | D10: 250
G11: Stationary c\f | H11: 1500
D12: =SUM(D5:D10) -> 1500 | H12: 1500

Sheet Rent
B3: Rent Account
B4: Date | C4: Particulars | D4: Amount | F4: Date | G4: Particulars | H4: Amount
B5: 2018-01-31 | C5: To Cash a\c | D5: 800
B6: 2018-02-28 | C6: To Cash a\c | D6: 800
B7: 2018-03-31 | C7: To Cash a\c | D7: 800
B8: 2018-04-30 | C8: To Cash a\c | D8: 800
B9: 2018-05-31 | C9: To Cash a\c | D9: 800
B10: 2018-06-30 | C10: To Cash a\c | D10: 800
G11: Rent c\f | H11: 4800
D12: =SUM(D5:D10) -> 4800 | H12: 4800

Sheet Telephone Expenses
B3: Telephone Expenses Account
B4: Date | C4: Particulars | D4: Amount | F4: Date | G4: Particulars | H4: Amount
B5: 2018-01-31 | C5: To Cash a\c | D5: 500
B6: 2018-02-28 | C6: To Cash a\c | D6: 500
B7: 2018-03-31 | C7: To Cash a\c | D7: 500
B8: 2018-04-30 | C8: To Cash a\c | D8: 500
B9: 2018-05-31 | C9: To Cash a\c | D9: 500
B10: 2018-06-30 | C10: To Cash a\c | D10: 500
G11: Telephone Expenses c\f | H11: 3000
D12: =SUM(D5:D10) -> 3000 | H12: 3000

Sheet Travelling Expenses
B3: Travelling Expenses Account
B4: Date | C4: Particulars | D4: Amount | F4: Date | G4: Particulars | H4: Amount
B5: 2018-01-31 | C5: To Cash a\c | D5: 350
B6: 2018-02-28 | C6: To Cash a\c | D6: 350
B7: 2018-03-31 | C7: To Cash a\c | D7: 350
B8: 2018-04-30 | C8: To Cash a\c | D8: 350
B9: 2018-05-31 | C9: To Cash a\c | D9: 350
B10: 2018-06-30 | C10: To Cash a\c | D10: 350
G11: Travelling Expenses c\f | H11: 2100
D12: =SUM(D5:D10) -> 2100 | H12: 2100

Sheet Printing
B3: Printing Account
B4: Date | C4: Particulars | D4: Amount | F4: Date | G4: Particulars | H4: Amount
B5: 2018-01-31 | C5: To Cash a\c | D5: 150
B6: 2018-02-28 | C6: To Cash a\c | D6: 150
B7: 2018-03-31 | C7: To Cash a\c | D7: 150
B8: 2018-04-30 | C8: To Cash a\c | D8: 150
B9: 2018-05-31 | C9: To Cash a\c | D9: 150
B10: 2018-06-30 | C10: To Cash a\c | D10: 150
G11: Printing c\f | H11: 900
D12: =SUM(D5:D10) -> 900 | H12: 900

Sheet Commission Received
B3: Commission Received Account
B4: Date | C4: Particulars | D4: Amount | F4: Date | G4: Particulars | H4: Amount
F5: 2018-01-31 | G5: By Cash a\c | H5: 150
F6: 2018-02-28 | G6: By Cash a\c | H6: 450
C7: Commission Received c\f | D7: 600
D8: 600 | H8: =SUM(H5:H6) -> 600

Sheet Purchase Returns
B3: Purchase Returns Account
B4: Date | C4: Particulars | D4: Amount | F4: Date | G4: Particulars | H4: Amount
F5: 2018-03-31 | G5: By Cash a\c | H5: 2000
G6: Purchase Returns c\f | H6: 2000
D7: 2000 | H7: =SUM(H5:H5) -> 2000

Sheet Sales Returns
B3: Sales Returns Account
B4: Date | C4: Particulars | D4: Amount | F4: Date | G4: Particulars | H4: Amount
B5: 2018-04-30 | C5: To Cash a\c | D5: 1500
G6: Sales Returns c\f | H6: 1500
D7: =SUM(D5:D5) -> 1500 | H7: 1500
